bitfinex/quotes_ETHUSD_20250822
["timestamp","ask_amount","ask_price","bid_price","bid_amount"]
[1755871444774,0.66,4447.5,4443.2,5.406]
[1755871444775,0.002,4452.1,4446.9,13.46834936]
[1755871444987,30.0198,4452.0,4447.0,7.5766]
[1755871445140,2.24781644,4448.8,4447.1,0.02248656]
[1755871445342,3.0,4450.1,4446.6,1.73]
[1755871445566,0.0209,4448.1,4444.5,5.406]
[1755871445741,3.0,4447.9,4444.5,5.406]
[1755871445937,0.0209,4448.1,4444.6,10.785721]
[1755871446294,30.0,4448.0,4444.7,0.0224987]
[1755871446443,0.0209,4448.1,4444.6,0.4406]
[1755871446640,0.0209,4448.1,4444.7,8.9975577]
[1755871446843,0.0209,4448.1,4444.9,3.66]
[1755871447044,0.002,4452.1,4449.6,2.24736825]
[1755871447285,0.002,4452.1,4449.7,8.0056]
[1755871447488,0.002,4452.1,4449.7,2.1706]
[1755871447640,30.0,4452.0,4449.1,1.73]
[1755871447847,2.083,4451.9,4448.2,1.73]
[1755871448074,30.0,4451.8,4447.7,1.729]
[1755871448249,3.354,4451.7,4446.3,1.729]
[1755871448454,0.66,4451.4,4443.1,5.405]
[1755871448649,30.354,4451.6,4439.8,0.02]
[1755871448650,1.1902196,4449.0,4441.2,1.729]
[1755871448863,1.1902196,4449.0,4440.0,5.405]
[1755871448864,1.729,4447.8,4444.1,1e-08]
[1755871449062,3.0,4447.6,4443.8,1e-08]
[1755871449264,1.19971628,4447.3,4443.8,1e-08]
[1755871449466,33.0,4447.2,4443.8,1e-08]
[1755871449683,33.0,4447.1,4443.8,1e-08]
[1755871449867,1.19913728,4446.8,4441.0,0.44]
[1755871450069,2.24925806,4446.0,4440.1,1.89935786]
[1755871450242,1.15711793,4445.5,4440.1,1.729]
[1755871450486,31.729,4445.9,4437.5,7.137]
[1755871450487,1.10366619,4444.9,4437.5,7.137]
[1755871450670,0.66,4442.6,4439.2,0.677042]
[1755871450879,2.25106728,4442.4,4439.5,0.44]
[1755871451054,0.66,4442.2,4437.8,0.02]
[1755871451255,3.0,4442.0,4438.8,0.697042]
[1755871451457,2.25229912,4440.0,4438.8,0.02]
[1755871451685,1.73,4440.7,4438.8,0.02]
[1755871451984,7.0,4440.7,4439.3,0.001]
[1755871452351,7.0,4440.7,4439.9,0.46252302]
[1755871452750,1.73,4443.4,4439.4,0.44]
[1755871452954,0.66,4442.2,4439.3,0.001]
[1755871453149,2.25227948,4440.0,4439.3,0.001]
[1755871453459,2.25227948,4440.0,4439.3,1e-08]
[1755871453460,0.66,4439.5,4439.3,1e-08]
[1755871453658,2.25331801,4437.9,4437.4,0.462523]
[1755871453859,1.731,4439.0,4436.1,2.25421638]
[1755871454061,7.65854674,4441.4,4438.2,0.090294]
[1755871454062,0.66,4439.1,4438.2,0.090294]
[1755871454384,0.66,4439.9,4436.1,0.44]
[1755871454572,30.0,4439.8,4436.1,0.44]
[1755871454775,2.25245166,4439.7,4436.1,0.44]
[1755871455086,3.98225122,4442.0,4437.9,2.171]
[1755871455249,0.3342,4442.3,4438.1,3.0]
[1755871455450,1.731,4444.8,4438.4,0.66]
[1755871455695,1.731,4445.8,4439.6,1.731]
[1755871455990,2.24938725,4445.7,4439.9,3.0]
[1755871456150,0.3342,4447.2,4440.2,0.66]
[1755871456356,0.3342,4446.4,4440.4,3.0]
[1755871456594,37.14,4446.3,4438.7,5.409]
[1755871456753,32.58376696,4446.2,4439.2,0.44]
[1755871457059,30.0,4446.1,4439.3,30.44]
[1755871457265,0.3342,4447.4,4439.4,30.46252556]
[1755871457503,0.02,4442.8,4442.7,2.25088347]
[1755871457792,0.02,4443.8,4443.6,2.2503929]
[1755871458016,0.02,4443.8,4442.8,4.1]
[1755871458164,0.02,4443.8,4442.9,3.134761]
[1755871458371,1.731,4449.6,4443.2,2.25063017]
[1755871458692,0.08461913,4450.2,4443.1,3.0]
[1755871458693,0.08461913,4450.2,4446.6,2.2488768]
[1755871458896,0.08461913,4450.2,4446.7,7.16248858]
[1755871459194,0.3342,4447.9,4444.6,5.409]
[1755871459411,1.731,4447.8,4444.0,7.14]
[1755871459715,1.731,4447.8,4440.7,2.25189493]
[1755871459716,0.66,4446.5,4442.9,1.731]
[1755871459926,3.66,4446.3,4443.0,0.676587]
[1755871460105,3.6592,4446.1,4443.0,0.676587]
[1755871460273,2.7701,4445.9,4443.0,0.676587]
[1755871460472,0.6592,4446.1,4443.0,0.676587]
[1755871460686,30.0,4446.0,4443.0,0.676587]
[1755871460911,2.24956696,4445.9,4443.0,0.676587]
[1755871461112,0.3342,4445.8,4443.0,0.676587]
[1755871461315,30.3342,4445.8,4440.0,5.408]
[1755871461486,30.3342,4445.7,4440.5,0.676908]
[1755871461675,30.3342,4445.6,4440.5,0.676908]
[1755871461879,30.0,4445.5,4440.6,9.918089]
[1755871462077,30.0,4445.4,4440.7,0.46251897]
[1755871462291,0.3342,4445.4,4440.9,0.66]
[1755871462495,0.02,4441.8,4441.1,3.66]
[1755871462714,0.02,4441.8,4441.0,0.44]
[1755871462916,0.02,4441.8,4440.8,5.408]
[1755871463116,0.02,4441.8,4440.9,3.34283995]
[1755871463287,0.02,4441.8,4441.0,0.02251745]
[1755871463491,0.02,4441.8,4440.9,0.44]
[1755871463723,0.02,4442.8,4442.6,2.25090091]
[1755871464017,0.3342,4446.9,4442.7,2.171]
[1755871464176,2.24960102,4445.3,4442.8,5.409]
[1755871464381,0.3342,4445.8,4442.8,5.409]
[1755871464624,0.3542,4446.8,4442.8,5.409]
[1755871465127,30.0,4446.7,4442.9,1.731]
[1755871465281,0.02,4446.8,4443.1,2.25068083]
[1755871465483,0.02,4446.8,4443.3,3.0]
[1755871465714,0.02,4446.8,4443.8,0.66]
[1755871465922,0.02,4446.8,4443.7,2.25037693]
[1755871465923,0.02,4446.8,4444.2,0.1128]
[1755871466138,0.02,4446.8,4443.9,3.44]
[1755871466422,2.249546,4445.4,4442.9,0.44]
[1755871466725,2.24958809,4445.3,4443.8,1.731]
[1755871466877,0.02,4446.8,4443.8,1.731]
[1755871467083,0.02,4446.8,4443.9,1.1]
[1755871467322,0.02,4446.8,4445.0,0.66]
[1755871467502,0.02,4446.8,4445.1,13.752245]
[1755871467824,2.24741776,4449.6,4445.1,13.752245]
[1755871467825,2.24697366,4450.5,4448.1,2.24812355]
[1755871467981,1.731,4452.4,4448.2,7.14]
[1755871468181,0.3342,4451.5,4447.2,1.731]
[1755871468387,1.731,4451.1,4447.3,2.19348555]
[1755871468607,0.3342,4450.0,4446.2,1.731]
[1755871468931,0.3342,4450.0,4446.0,0.44]
[1755871468932,1.733,4452.8,4446.4,3.0]
[1755871469087,2.0672,4452.8,4446.7,2.9088587]
[1755871469300,2.0672,4452.8,4447.1,3.0]
[1755871469636,2.0672,4452.8,4449.2,2.24755785]
[1755871469794,0.02247595,4452.7,4447.2,0.44]
[1755871470129,0.02247595,4449.3,4447.5,2.24844722]
[1755871470432,2.251432,4449.2,4447.2,0.44]
[1755871470727,0.02247595,4449.1,4447.2,0.44]
[1755871470930,2.251432,4449.0,4447.0,1.73]
[1755871471105,0.02247595,4448.9,4446.2,0.44]
[1755871471308,2.251432,4448.8,4446.2,0.44]
[1755871471514,0.66,4448.5,4444.2,0.44]
[1755871471739,4.4991339,4445.3,4441.6,0.08243106]
[1755871472032,0.66,4445.4,4439.4,2.17]
[1755871472033,2.25077166,4443.0,4439.4,2.17]
[1755871472216,33.0,4442.8,4439.4,1.73]
[1755871472422,2.27390795,4442.9,4439.2,5.406]
[1755871472423,0.66,4442.5,4439.3,1.73]
[1755871472610,0.92410795,4442.4,4439.3,1.73]
[1755871472805,30.901632,4442.3,4439.3,1.73]
[1755871473023,0.68247595,4442.2,4439.3,1.73]
[1755871473243,0.66,4442.0,4438.8,0.021]
[1755871473451,0.66,4440.9,4438.8,0.021]
[1755871473607,0.66,4440.2,4438.8,0.021]
[1755871473807,0.66,4439.8,4438.8,0.021]
[1755871474012,0.66,4439.6,4438.8,0.021]
[1755871474208,0.66,4439.4,4438.8,0.021]
[1755871474414,0.66,4439.2,4438.8,0.021]
[1755871474611,3.66,4439.0,4438.8,0.021]
[1755871474813,0.66,4438.1,4437.8,0.02]
[1755871475014,0.66,4438.1,4434.8,0.02]
[1755871475015,4.75347595,4438.0,4434.8,1.751]
[1755871475227,0.880632,4437.9,4435.4,0.44]
[1755871475426,0.02247595,4437.8,4436.4,0.44]
[1755871475631,0.02247595,4437.7,4436.5,0.02254029]
[1755871475834,0.02247595,4437.7,4435.9,5.41]
[1755871475835,0.880632,4437.6,4435.1,0.44]
[1755871476002,0.02247595,4437.5,4436.0,0.44]
[1755871476203,0.02247595,4438.5,4436.0,0.44]
[1755871476548,0.02247595,4438.5,4436.9,0.44]
[1755871476748,1.731,4440.4,4436.9,0.44]
[1755871476952,0.02247595,4440.3,4437.3,3.66]
[1755871477153,1.731,4443.8,4440.6,2.2519359]
[1755871477307,1.731,4443.8,4440.6,2.171]
[1755871477308,0.02247595,4443.7,4440.6,2.171]
[1755871477507,2.25052394,4443.5,4440.7,3.628]
[1755871477705,2.2502437,4444.0,4440.7,3.628]
[1755871477706,0.02247595,4443.4,4440.7,0.44]
[1755871477920,30.3299,4443.3,4438.3,7.142]
[1755871478123,1.731,4443.9,4438.4,0.44]
[1755871478124,39.41104291,4443.2,4438.4,0.44]
[1755871478337,3.0,4443.0,4437.2,0.4721]
[1755871478503,9.38856696,4443.2,4437.2,0.4721]
[1755871478504,2.25088347,4442.7,4437.2,0.4721]
[1755871478710,2.25103547,4442.4,4437.3,0.68253622]
[1755871478945,32.27204291,4442.3,4437.5,3.66]
[1755871479148,0.02247595,4442.2,4441.8,0.02]
[1755871479845,2.25068083,4443.1,4441.8,0.02]
[1755871480053,2.25068083,4443.1,4439.9,2.7244013]
[1755871480054,0.02247595,4443.0,4440.5,2.25195887]
[1755871480203,0.02247595,4443.0,4439.4,0.02252556]
[1755871480405,1.731,4444.6,4439.6,3.0]
[1755871480605,2.25077131,4443.0,4439.5,1.731]
[1755871480836,0.02247595,4442.9,4439.5,1.731]
[1755871481456,0.02247595,4442.9,4439.6,6.89692255]
[1755871481659,2.25007312,4444.3,4439.6,3.0]
[1755871481882,2.25022502,4444.0,4439.6,0.02252455]
[1755871482063,0.3596,4444.1,4439.6,0.02252455]
[1755871482064,1.75347595,4443.9,4439.9,2.25230297]
[1755871482242,1.75347595,4443.9,4440.0,2.562023]
[1755871482436,1.75347595,4443.9,4440.2,3.0]
[1755871482646,1.75347595,4443.9,4440.3,0.4721]
[1755871482832,30.0,4443.8,4440.3,0.4721]
[1755871483065,2.63164291,4443.7,4439.5,1.731]
[1755871483235,2.63164291,4443.7,4439.2,0.4721]
[1755871483236,2.25116433,4442.2,4439.2,0.4721]
[1755871483434,2.25136001,4441.8,4438.8,1.751]
[1755871483632,0.02247595,4441.7,4439.8,2.25232218]
[1755871483878,0.02247595,4441.7,4439.9,0.4721]
[1755871484072,3.02247595,4442.9,4439.9,2.72436643]
[1755871484277,0.02247595,4442.9,4441.1,2.25168257]
[1755871484500,0.02247595,4442.9,4440.6,1.731]
[1755871484657,0.02167595,4442.9,4440.6,1.731]
[1755871484860,0.02167595,4442.9,4439.9,0.4721]
[1755871485070,2.25096778,4442.6,4439.9,0.4721]
[1755871485274,0.02167595,4442.5,4440.0,7.98735952]
[1755871485598,0.02167595,4443.5,4440.1,0.4721]
[1755871486498,3.0,4443.3,4440.1,0.4731]
[1755871486667,0.02167595,4443.2,4440.1,0.4731]
[1755871487177,0.02167595,4443.2,4440.6,0.001]
[1755871487577,0.02167595,4443.5,4440.6,0.001]
[1755871487754,3.02167595,4443.5,4440.6,0.001]
[1755871487956,0.02167595,4443.5,4440.7,0.4721]
[1755871488158,0.3596,4446.1,4440.9,3.0]
[1755871488469,1.731,4446.0,4441.4,3.0]
[1755871488673,1.731,4446.9,4441.7,2.25139023]
[1755871488991,2.24733853,4449.8,4441.7,2.25139023]
[1755871488992,1.731,4448.4,4442.1,1.731]
[1755871489194,1.731,4448.4,4442.2,11.197113]
[1755871489195,2.24821175,4448.0,4442.2,11.197113]
[1755871489430,0.3596,4448.1,4442.3,7.076325]
[1755871489585,2.24832218,4447.8,4442.7,3.0]
[1755871489781,0.3596,4448.1,4443.0,2.25073148]
[1755871490021,0.3596,4448.1,4442.8,11.712636]
[1755871490022,1.731,4447.1,4443.1,9.106636]
[1755871490331,1.731,4447.1,4443.2,0.4721]
[1755871490332,30.0,4446.7,4443.2,0.4721]
[1755871490511,3.0,4446.5,4442.5,0.4721]
[1755871490716,3.0,4446.3,4440.8,1.731]
[1755871491020,37.7986,4446.4,4440.6,0.001]
[1755871491021,2.2505581,4443.4,4441.2,0.4721]
[1755871491183,1.731,4443.3,4441.3,2.32681]
[1755871491383,1.731,4444.6,4441.4,0.4721]
[1755871491584,1.731,4445.1,4441.5,0.66]
[1755871491897,3.0,4445.0,4441.7,2.25139023]
[1755871492110,0.3596,4444.9,4441.8,0.4721]
[1755871492309,3.3596,4444.9,4441.2,1.731]
[1755871492514,2.24956696,4444.8,4441.3,3.38202093]
[1755871492832,2.0906,4445.1,4442.0,2.25121734]
[1755871492986,2.0906,4445.1,4440.3,0.66]
[1755871492987,2.25070758,4443.1,4440.2,0.4721]
[1755871493188,1.731,4443.0,4440.2,0.4721]
[1755871493389,31.731,4442.9,4440.1,0.001]
[1755871493584,3.0,4442.7,4440.1,0.001]
[1755871493833,3.0,4442.5,4440.1,0.001]
[1755871493995,5.25113252,4442.3,4440.1,0.001]
[1755871494195,2.25134506,4441.8,4441.7,0.001]
[1755871494442,3.0,4442.3,4441.7,0.001]
[1755871494645,1.731,4442.9,4441.7,0.001]
[1755871494944,1.731,4443.2,4441.7,0.001]
[1755871495247,0.003,4445.1,4441.7,0.001]
[1755871495248,0.003,4445.1,4441.8,0.4721]
[1755871495542,0.003,4445.1,4442.5,0.66]
[1755871495845,0.003,4445.1,4441.9,5.2737764]
[1755871495846,0.003,4445.1,4444.9,2.24974566]
[1755871496004,0.003,4445.1,4443.9,1.731]
[1755871496344,0.003,4445.1,4444.0,1.731]
[1755871496644,1.733,4449.4,4445.1,2.314969]
[1755871496811,0.0192,4446.8,4445.2,0.02249617]
[1755871497013,0.0192,4446.8,4446.6,2.24886326]
[1755871497214,0.0192,4446.8,4445.3,0.4721]
[1755871497421,0.0192,4446.8,4445.2,2.24958118]
[1755871497422,0.0192,4446.8,4443.4,3.0]
[1755871497633,0.0192,4446.8,4443.9,0.4721]
[1755871497818,3.0,4446.6,4443.0,5.411]
[1755871498016,3.0,4446.4,4443.0,5.361]
[1755871498341,2.372,4445.8,4440.6,5.412]
[1755871498547,3.0,4445.4,4441.1,0.4721]
[1755871498838,2.372,4444.6,4440.7,2.25187851]
[1755871499037,2.372,4444.6,4439.6,2.72451881]
[1755871499038,2.250683,4443.1,4440.4,0.4721]
[1755871499203,1.731,4443.0,4440.4,0.4721]
[1755871499405,0.3625,4445.8,4440.5,3.201294]
[1755871499607,3.0,4445.5,4440.6,0.4721]
[1755871499805,3.0,4445.3,4440.6,0.4721]
[1755871500023,2.372,4443.8,4439.4,5.8831]
[1755871500220,30.3625,4445.2,4438.9,1.731]
[1755871500221,3.0,4443.6,4438.9,1.731]
[1755871500553,1.731,4444.8,4440.2,11.012964]
[1755871500852,0.3625,4446.7,4440.4,5.25204936]
[1755871501150,30.3625,4446.6,4440.7,3.66]
[1755871501448,30.3625,4446.5,4440.8,0.4721]
[1755871501752,1.7502,4446.8,4440.1,0.001]
[1755871501753,2.24956695,4445.3,4440.1,0.001]
[1755871502049,2.24971878,4445.0,4440.1,0.001]
[1755871502255,1.731,4450.4,4443.3,4.064652]
[1755871502405,1.731,4448.2,4444.5,2.24992894]
[1755871502747,1.731,4448.2,4443.5,3.0]
[1755871502748,0.3817,4446.8,4444.6,30.0]
[1755871502902,31.731,4446.7,4443.6,30.0]
[1755871503238,1.731,4446.7,4443.5,0.4721]
[1755871503537,1.731,4446.7,4443.7,3.0]
[1755871503722,1.731,4446.7,4443.8,30.0]
[1755871503723,0.002,4446.2,4443.8,30.0]
[1755871503929,0.002,4446.2,4442.7,0.4721]
[1755871503930,0.002,4446.2,4443.4,30.0]
[1755871504142,2.25034869,4443.8,4443.0,30.0]
[1755871504308,1.731,4444.2,4442.1,0.4721]
[1755871504509,2.25030407,4443.9,4442.2,30.0]
[1755871504712,1.731,4443.9,4442.2,30.0]
[1755871505045,0.02,4443.8,4442.8,0.02]
[1755871505252,31.731,4443.7,4442.8,0.02]
[1755871505547,30.0,4443.6,4442.8,0.02]
[1755871505718,0.02,4443.8,4442.8,0.02]
[1755871505719,30.0,4443.7,4442.8,0.02]
[1755871506120,0.02,4443.8,4442.8,0.02]
[1755871506940,0.02,4443.8,4442.9,0.02250782]
[1755871507248,0.02,4443.8,4442.8,0.02]
[1755871507434,0.02,4444.8,4444.7,2.24987063]
[1755871507643,2.24748218,4449.5,4444.7,2.2031]
[1755871507816,2.24815453,4448.1,4444.7,2.2031]
[1755871508143,0.3823,4447.3,4443.9,5.409]
[1755871508330,3.0,4446.0,4443.5,0.4675]
[1755871508533,2.24851167,4447.4,4443.5,0.4675]
[1755871508710,1.731,4447.3,4443.5,0.4675]
[1755871509150,1.731,4447.3,4443.0,0.4675]
[1755871509151,0.4015,4446.8,4443.0,0.4675]
[1755871509308,0.4015,4446.8,4443.1,0.66]
[1755871509510,0.0192,4446.8,4443.0,0.4675]
[1755871509852,3.0,4446.0,4442.8,0.02]
[1755871510022,3.0,4445.8,4442.8,0.02]
[1755871510351,30.3823,4445.9,4442.8,0.02]
[1755871510352,3.0,4445.5,4442.8,0.02]
[1755871510520,0.3823,4445.7,4442.8,0.02]
[1755871510723,0.002,4446.6,4443.0,3.0]
[1755871510922,0.002,4446.6,4446.0,2.24917207]
[1755871511122,0.002,4449.4,4445.9,3.0]
[1755871511322,0.002,4449.4,4446.2,2.2491116]
[1755871511527,0.16961254,4451.5,4446.4,3.0]
[1755871511716,1.731,4453.7,4447.0,0.66]
[1755871511913,1.731,4454.7,4449.3,0.66]
[1755871512114,2.2457726,4452.9,4449.5,3.0]
[1755871512360,2.24511889,4454.2,4449.7,3.0]
[1755871512518,2.24566521,4453.1,4449.8,3.19164992]
[1755871512839,2.24508418,4454.2,4449.8,0.02247292]
[1755871512840,30.0,4452.7,4449.8,0.02247292]
[1755871513034,1.731,4453.5,4448.6,0.02247898]
[1755871513239,3.0,4452.6,4448.7,2.1985]
[1755871513437,32.24956696,4452.5,4448.8,0.4675]
[1755871513664,33.3843,4452.4,4448.2,0.16462292]
[1755871513816,33.0,4452.3,4448.2,0.16462292]
[1755871514015,3.0,4452.1,4447.6,0.4675]
[1755871514214,2.24638332,4451.6,4447.0,1.731]
[1755871514469,3.0,4451.7,4446.6,0.4675]
[1755871514470,2.2469165,4450.6,4446.6,0.4675]
[1755871514669,2.24703952,4450.3,4445.8,0.4675]
[1755871514874,31.73,4450.5,4444.4,0.4675]
[1755871514875,2.24719101,4450.0,4444.4,0.4675]
[1755871515055,5.24730491,4449.8,4443.9,2.25023077]
[1755871515234,3.0,4449.3,4443.8,5.407]
[1755871515436,2.24749404,4449.4,4443.8,5.407]
[1755871515437,2.24844209,4447.6,4444.9,2.24973828]
[1755871515637,2.24832984,4447.8,4445.3,2.24952918]
[1755871515860,3.0,4447.6,4444.5,1.73]
[1755871516044,3.0,4447.4,4444.0,0.4675]
[1755871516258,7.0,4447.8,4442.8,0.02]
[1755871516259,5.24861572,4447.2,4442.8,0.02]
[1755871516462,2.24880813,4446.8,4442.8,0.02]
[1755871516664,2.24901043,4446.4,4442.8,0.02]
[1755871516835,3.0,4446.6,4442.8,0.02]
[1755871516836,30.0,4446.3,4442.8,0.4875]
[1755871517035,0.003,4445.0,4442.8,0.4875]
[1755871517466,0.003,4445.0,4443.0,3.0]
[1755871517664,0.003,4445.0,4444.8,2.24981416]
[1755871517870,2.24799708,4448.5,4444.8,2.24981416]
[1755871517871,2.24835465,4447.7,4444.9,7.15949769]
[1755871518068,2.24919062,4446.1,4443.5,2.25042918]
[1755871518275,2.24919062,4446.1,4442.1,2.25114542]
[1755871518276,7.0,4446.1,4444.1,0.4675]
[1755871518462,2.24921277,4446.0,4443.1,0.4675]
[1755871518649,7.0,4446.1,4440.1,0.001]
[1755871518650,7.0,4446.1,4443.2,4.4463053]
[1755871518850,7.0,4446.1,4443.5,2.25047822]
[1755871519054,7.0,4446.1,4443.6,7.496799]
[1755871519258,5.662,4446.1,4446.0,5.90921277]
[1755871519551,5.662,4446.1,4446.0,15.38290877]
[1755871519747,5.662,4446.1,4443.5,1.73]
[1755871519950,5.662,4446.1,4446.0,0.66]
[1755871520175,1.73,4449.7,4446.2,0.66]
[1755871520176,0.4506,4449.7,4446.2,0.66]
[1755871520374,0.4506,4449.6,4446.4,3.0]
[1755871520560,2.24761999,4449.2,4446.2,0.66]
[1755871520760,0.4506,4449.6,4446.4,0.66]
[1755871521084,7.0,4449.2,4447.0,2.90870653]
[1755871521377,0.0012,4451.9,4447.4,0.66]
[1755871521582,0.0012,4451.9,4447.6,3.0]
[1755871521782,0.4506,4451.8,4447.7,0.68248353]
[1755871521940,0.002,4451.4,4447.8,3.0]
[1755871522141,0.002,4451.4,4449.4,0.112]
[1755871522341,0.002,4451.4,4449.7,0.112]
[1755871522575,0.002,4451.4,4449.5,1.75247443]
[1755871522576,0.002,4451.4,4449.5,1.73]
[1755871522774,0.002,4451.4,4450.5,2.2469019]
[1755871522941,0.002,4451.4,4449.7,3.0]
[1755871523142,0.002,4451.4,4450.0,2.24715699]
[1755871523366,0.002,4451.4,4451.2,2.24654216]
[1755871523568,0.0012,4451.9,4451.5,2.90643378]
[1755871523752,0.0012,4451.9,4451.4,3.9004]
[1755871523753,0.0012,4451.9,4451.8,2.9062824]
[1755871523951,0.0012,4451.9,4451.8,3.66]
[1755871524168,0.003,4452.8,4452.7,0.66]
[1755871524679,0.003,4452.8,4452.7,2.389]
[1755871524885,1.729,4457.2,4452.8,0.66]
[1755871525085,0.4506,4457.0,4452.7,1.729]
[1755871525284,0.002,4452.7,4452.0,0.66]
[1755871525493,0.002,4452.7,4451.4,1.729]
[1755871525727,0.002,4452.7,4450.6,5.402]
[1755871526050,0.4506,4452.6,4449.5,2.24744353]
[1755871526299,2.24605322,4452.3,4449.6,7.13]
[1755871526590,0.4506,4452.6,4449.7,1.728]
[1755871526759,0.002,4452.7,4449.9,0.66]
[1755871526978,0.002,4452.7,4448.8,1.728]
[1755871526979,30.4506,4452.6,4448.8,1.728]
[1755871527162,3.0,4452.4,4446.4,5.402]
[1755871527384,2.24613103,4452.1,4446.6,4.09719]
[1755871527597,3.0,4451.9,4446.7,10.188]
[1755871527794,3.0,4451.7,4446.4,5.402]
[1755871527955,3.0,4451.5,4446.5,11.89754259]
[1755871528154,3.0,4451.3,4446.7,0.675536]
[1755871528477,7.428,4451.8,4446.4,5.402]
[1755871528478,0.4506,4451.8,4446.9,3.0]
[1755871528676,0.4506,4451.8,4447.3,0.66]
[1755871528851,0.4506,4451.8,4447.7,4.49670616]
[1755871529174,0.4506,4451.8,4448.0,3.0]
[1755871529518,0.4506,4451.8,4447.6,2.24840245]
[1755871529519,0.4506,4451.8,4448.6,0.66]
[1755871529653,0.4506,4451.8,4449.0,0.66]
[1755871529852,0.4506,4451.8,4448.8,0.66]
[1755871529853,0.4506,4451.8,4449.2,0.66]
[1755871530069,0.4506,4451.8,4449.1,1.729]
[1755871530070,0.4506,4451.8,4450.6,2.24687206]
[1755871530292,0.4506,4452.8,4450.0,0.66]
[1755871530474,0.4506,4453.8,4451.7,2.24629524]
[1755871530791,0.4506,4453.8,4452.5,2.2459234]
[1755871531091,0.35152255,4453.6,4451.5,1.729]
[1755871531253,0.4506,4453.8,4452.5,2.24588775]
[1755871531589,0.35146131,4454.3,4452.6,0.68245878]
[1755871531799,0.4506,4456.1,4452.8,0.66]
[1755871532027,0.4506,4457.4,4453.0,3.66]
[1755871532210,0.3513452,4457.3,4453.9,0.66]
[1755871532486,0.4506,4457.4,4453.1,5.401]
[1755871532654,0.4506,4457.4,4452.9,1.728]
[1755871532655,30.0,4457.3,4455.0,0.112]
[1755871532853,0.4506,4457.2,4451.9,1.728]
[1755871533053,3.0,4457.0,4451.8,3.0]
[1755871533254,32.70016696,4456.9,4454.0,2.24513822]
[1755871533455,0.4506,4456.9,4453.2,0.66]
[1755871533694,0.4498,4456.9,4454.3,2.24497942]
[1755871533879,0.4498,4456.9,4454.4,0.02244971]
[1755871534078,0.4498,4456.9,4455.0,2.24465299]
[1755871534284,1.728,4458.2,4455.0,0.66]
[1755871534485,2.24315836,4458.0,4454.9,7.129]
[1755871534799,0.35128902,4457.5,4455.2,0.66]
[1755871534955,1.728,4459.9,4455.3,2.071977]
[1755871535156,0.35118733,4459.3,4456.0,2.372]
[1755871535353,0.35038733,4459.3,4459.1,2.24256198]
[1755871535616,0.4506,4462.9,4459.9,2.24220273]
[1755871535897,1e-08,4460.0,4459.9,9.58760373]
[1755871536098,1e-08,4460.0,4459.9,16.51530573]
[1755871536261,1e-08,4460.0,4459.9,7.85597773]
[1755871536457,0.4506,4464.2,4461.4,2.24144887]
[1755871536687,0.4506,4464.2,4460.8,3.0]
[1755871536994,1.728,4464.8,4460.4,1.728]
[1755871536995,0.4506,4463.5,4460.4,1.728]
[1755871537359,0.57459793,4465.0,4460.4,1.728]
[1755871537561,30.9846,4464.9,4458.8,0.27556739]
[1755871537762,30.9846,4464.9,4455.0,2.806]
[1755871537763,2.831806,4463.3,4456.7,1.726]
[1755871537963,0.87910097,4465.0,4456.7,1.726]
[1755871537964,2.831806,4464.6,4458.8,13.39508205]
[1755871538284,0.57459793,4465.0,4459.0,3.0]
[1755871538285,0.4497,4464.5,4459.0,3.0]
[1755871538580,0.4497,4464.5,4458.9,44.19508298]
[1755871538581,0.4497,4464.5,4459.2,3.0]
[1755871538780,2.831806,4464.4,4459.4,3.0]
[1755871538983,2.831806,4464.4,4463.1,2.24058465]
[1755871539170,2.831806,4464.4,4463.2,0.02240544]
[1755871539369,2.831806,4464.9,4462.8,1.726]
[1755871539573,0.4497,4464.8,4462.8,1.726]
[1755871539869,2.831806,4464.9,4462.8,1.726]
[1755871539870,2.831806,4464.7,4462.9,2.24069551]
[1755871540074,2.831806,4464.7,4462.5,2.128]
[1755871540075,0.4497,4464.6,4461.2,0.17173511]
[1755871540272,0.57459793,4465.0,4461.4,0.66]
[1755871540496,0.57459793,4465.0,4461.5,44.541]
[1755871540663,0.002,4462.4,4461.8,2.24124792]
[1755871540865,0.57459793,4465.0,4462.0,0.66]
[1755871541093,0.57459793,4465.0,4462.3,2.24099679]
[1755871541393,1.02429793,4465.0,4463.5,2.24038852]
[1755871541581,1.02429793,4465.0,4463.7,2.24029392]
[1755871541760,1.02429793,4465.0,4463.8,0.02240243]
[1755871541761,0.57459793,4465.0,4463.8,0.02240243]
[1755871541957,0.57459793,4465.0,4464.7,2.23977412]
[1755871542170,0.57459793,4465.0,4464.8,2.23972032]
[1755871542371,0.4497,4464.9,4462.6,5.393]
[1755871542671,0.4497,4464.9,4461.7,2.24127274]
[1755871542672,0.4497,4464.9,4461.8,7.415]
[1755871542892,0.4497,4464.9,4461.7,1.725]
[1755871543106,0.4497,4464.9,4462.4,2.24092516]
[1755871543305,0.4497,4464.9,4461.7,1.725]